bitfinex/quotes_ETHUSD_20250404
["timestamp","ask_amount","ask_price","bid_price","bid_amount"]
[1743743122891,14.15493387,1786.6,1786.4,0.1712591]
[1743743123095,8.55754387,1786.6,1786.4,0.1712591]
[1743743123294,14.15503387,1786.6,1786.4,0.1712591]
[1743743123591,14.15494387,1786.6,1786.4,0.1712591]
[1743743123797,8.55754387,1786.6,1786.4,0.1712591]
[1743743124116,14.15500387,1786.6,1786.4,0.1712591]
[1743743124616,8.55748387,1786.6,1786.4,0.1712591]
[1743743124987,14.15487387,1786.6,1786.4,0.1712591]
[1743743126818,8.55747387,1786.6,1786.4,0.1712591]
[1743743127123,14.15487387,1786.6,1786.4,0.1712591]
[1743743127724,8.55747387,1786.6,1786.4,0.1712591]
[1743743128224,5.96016387,1786.6,1786.4,0.1712591]
[1743743128690,11.55747387,1786.6,1786.4,0.1712591]
[1743743129921,18.91285039,1786.6,1786.4,0.1712591]
[1743743130116,5.59753,1786.5,1786.4,0.1712591]
[1743743130421,18.91289039,1786.6,1786.4,0.1712591]
[1743743130624,13.31536039,1786.6,1786.4,0.1712591]
[1743743131021,18.91274039,1786.6,1786.4,0.1712591]
[1743743131637,18.91274039,1786.6,1786.4,0.39549844]
[1743743132241,18.91278039,1786.6,1786.4,0.39549844]
[1743743134400,5.59753,1786.5,1786.4,0.39549844]
[1743743134604,7.48881904,1786.5,1786.4,0.39549844]
[1743743134810,7.48881904,1786.5,1786.2,5.59843]
[1743743135007,5.59753,1786.5,1786.4,0.39492513]
[1743743135208,3.0,1786.4,1786.3,0.39545027]
[1743743135419,5.59867,1786.2,1785.9,0.7827]
[1743743135618,5.5991,1786.0,1785.9,0.7827]
[1743743135815,13.79651279,1786.1,1785.9,0.7827]
[1743743136135,14.20705041,1786.1,1785.9,0.7827]
[1743743136332,3.00917041,1786.1,1785.9,0.7827]
[1743743136538,3.00917041,1786.1,1785.9,6.38202]
[1743743136708,3.00917041,1786.1,1785.9,0.7827]
[1743743136910,8.60806041,1786.1,1785.9,0.7827]
[1743743137109,8.60806041,1786.1,1785.7,6.38264]
[1743743137305,8.60806041,1786.1,1785.4,49.29288]
[1743743137306,5.59973,1785.8,1785.4,49.29288]
[1743743137622,11.19961,1785.8,1785.5,0.7827]
[1743743137816,5.59973,1785.8,1785.5,0.7827]
[1743743138023,5.59973,1785.8,1785.4,5.60083]
[1743743138241,5.60015,1785.7,1785.3,11.9725]
[1743743138440,5.60015,1785.7,1785.3,7.56848]
[1743743138734,8.59975,1785.8,1785.3,7.56848]
[1743743138939,5.60021,1785.7,1785.3,13.16965]
[1743743139137,5.60021,1785.7,1785.4,5.60095]
[1743743139837,5.60021,1785.7,1785.3,13.16967]
[1743743140018,8.59978,1785.8,1785.4,5.60084]
[1743743140337,3.0,1785.8,1785.4,5.60084]
[1743743140522,8.56127542,1785.9,1785.5,5.60051]
[1743743140727,11.19905,1785.9,1785.5,5.60051]
[1743743140929,5.59943,1785.9,1785.5,5.60051]
[1743743141239,3.0,1785.9,1785.6,6.37034]
[1743743141444,3.0,1785.9,1785.6,6.37029]
[1743743141940,10.019259,1785.9,1785.6,0.7701]
[1743743142311,10.019259,1785.9,1785.7,0.33995532]
[1743743142737,15.618849,1785.9,1785.7,0.33995532]
[1743743142915,10.019259,1785.9,1785.7,0.33995532]
[1743743143337,8.59941,1785.9,1785.7,0.33995532]
[1743743143642,11.19841,1786.0,1785.7,0.33995532]
[1743743143839,5.59943,1785.9,1785.7,0.33995532]
[1743743145139,5.59973,1785.8,1785.7,0.33995532]
[1743743145517,11.19961,1785.8,1785.5,0.7701]
[1743743145725,5.59973,1785.8,1785.6,0.31098122]
[1743743147042,3.0,1785.8,1785.6,0.31098122]
[1743743147256,8.59975,1785.8,1785.6,0.31098122]
[1743743149616,3.0,1786.0,1785.6,0.31098122]
[1743743149838,0.41053762,1786.1,1785.9,6.36941]
[1743743150040,0.41053762,1786.1,1785.9,6.36939]
[1743743150222,11.19588,1786.4,1786.0,0.30915802]
[1743743150423,0.41976968,1786.4,1786.1,5.59861]
[1743743150731,3.0,1786.5,1786.2,6.67626266]
[1743743150937,5.59795,1786.4,1786.2,0.30771266]
[1743743151139,5.59795,1786.4,1786.1,0.7701]
[1743743151337,5.59795,1786.4,1786.2,0.30771266]
[1743743151714,11.19604,1786.4,1786.2,0.30771266]
[1743743151917,5.59733,1786.6,1786.2,5.90614266]
[1743743152122,5.59697,1786.7,1786.3,11.1961]
[1743743152448,3.0,1786.6,1786.4,1.0757873]
[1743743152948,8.59722,1786.6,1786.4,0.3056873]
[1743743153344,8.59722,1786.6,1786.2,11.96687]
[1743743153549,8.59722,1786.6,1786.3,5.90432245]
[1743743154130,9.0257734,1786.6,1786.3,5.90432245]
[1743743154327,3.4285534,1786.6,1786.3,5.90423245]
[1743743154652,6.01,1786.9,1786.5,6.3513]
[1743743154955,10.17666667,1787.0,1786.7,5.59676]
[1743743155132,10.17666667,1787.0,1786.8,0.30358731]
[1743743155133,8.59628,1786.9,1786.8,0.30358731]
[1743743155335,14.19278,1786.9,1786.5,6.35127]
[1743743155531,3.0,1786.9,1786.6,0.35877278]
[1743743155721,3.0,1786.9,1786.8,0.7538]
[1743743155927,3.0,1786.9,1786.8,1.05527511]
[1743743156549,8.59628,1786.9,1786.8,1.05527511]
[1743743156748,8.59628,1786.9,1786.8,0.30147511]
[1743743156930,14.19286,1786.9,1786.6,0.7538]
[1743743157132,14.19286,1786.9,1786.7,0.3016056]
[1743743157328,8.59628,1786.9,1786.6,0.7538]
[1743743157528,14.19273,1786.9,1786.7,0.3016056]
[1743743157732,8.59628,1786.9,1786.6,0.7538]
[1743743157933,5.59659,1786.8,1786.6,0.7538]
[1743743158140,14.19275,1786.9,1786.7,0.3016056]
[1743743158438,8.59628,1786.9,1786.6,0.7538]
[1743743158640,8.59628,1786.9,1786.8,0.3009415]
[1743743158846,8.59628,1786.9,1786.7,0.30146641]
[1743743159041,8.59628,1786.9,1786.6,0.7538]
[1743743159042,8.59628,1786.9,1786.8,0.3009415]
[1743743159251,16.18947466,1787.0,1786.8,0.3009415]
[1743743159450,10.59345466,1787.0,1786.8,0.3009415]
[1743743159638,10.59345466,1787.0,1786.8,5.59647]
[1743743159844,10.59345466,1787.0,1786.9,0.30041665]
[1743743160044,17.69315809,1787.0,1786.9,0.30041665]
[1743743160243,11.19291,1786.9,1786.6,0.7538]
[1743743160440,2.59584418,1786.7,1786.5,6.35118]
[1743743160646,2.59584418,1786.9,1786.6,5.59708]
[1743743161361,8.19215418,1786.9,1786.6,5.59708]
[1743743161733,12.09718809,1787.0,1786.7,5.5967]
[1743743162234,13.59345466,1787.0,1786.9,0.7538]
[1743743164141,10.17666667,1787.0,1786.9,6.35008]
[1743743164851,10.17666667,1787.0,1786.9,0.7538]
[1743743165635,10.17666667,1787.0,1786.9,6.35008]
[1743743166137,10.17666667,1787.0,1786.9,0.7538]
[1743743166571,11.87431324,1787.0,1786.6,0.7538]
[1743743166751,5.59694,1786.7,1786.4,0.7538]
[1743743166947,11.1941,1786.7,1786.4,0.7538]
[1743743167172,5.59799,1786.4,1786.2,0.7538]
[1743743167472,8.19337418,1786.5,1786.2,0.7538]
[1743743168244,13.79106418,1786.5,1786.2,0.7538]
[1743743168443,14.20377334,1786.5,1786.2,0.7538]
[1743743169374,8.60608334,1786.5,1786.2,0.7538]
[1743743169575,5.59802,1786.4,1786.2,0.7538]
[1743743169878,8.60613334,1786.5,1786.2,0.7538]
[1743743170544,11.19603,1786.4,1786.2,0.7538]
[1743743170745,5.598,1786.4,1786.2,0.7538]
[1743743171271,11.19605,1786.4,1786.2,0.7538]
[1743743171471,11.19605,1786.4,1786.0,0.7838]
[1743743171472,5.59864,1786.2,1786.0,0.7838]
[1743743171873,5.59864,1786.2,1785.8,12.53308]
[1743743172075,8.19405418,1786.3,1786.0,5.59905]
[1743743172279,7.01832033,1786.4,1786.0,11.19805]
[1743743172497,7.01832033,1786.4,1786.1,5.87664547]
[1743743172651,12.61635033,1786.4,1786.1,5.87664547]
[1743743172854,12.61635033,1786.4,1786.1,0.27790547]
[1743743173064,5.59786,1786.4,1786.2,0.7838]
[1743743173290,5.59786,1786.4,1786.2,1.06118021]
[1743743173478,3.0,1786.4,1786.2,6.65962021]
[1743743173669,6.01,1786.6,1786.2,1.06118021]
[1743743173983,6.01,1786.7,1786.4,5.5977]
[1743743174153,6.01,1786.7,1786.5,6.38129]
[1743743174355,6.01,1786.7,1786.6,0.27527975]
[1743743174570,11.1934,1786.8,1786.6,0.27527975]
[1743743174571,17.2034,1786.8,1786.6,0.27527975]
[1743743174749,21.81958418,1786.8,1786.6,0.27527975]
[1743743175179,16.22280418,1786.8,1786.6,0.27527975]
[1743743175383,8.60584418,1786.8,1786.6,0.27527975]
[1743743175591,6.01,1786.8,1786.6,5.87234975]
[1743743176355,6.01,1786.8,1786.6,11.46943975]
[1743743176888,6.01,1786.8,1786.6,5.87234975]
[1743743177389,6.01,1786.8,1786.6,0.27527975]
[1743743177797,6.01,1786.8,1786.6,5.87243975]
[1743743178371,15.36324518,1786.8,1786.6,0.27527975]
[1743743178560,5.59691,1786.7,1786.6,0.27527975]
[1743743178760,5.59691,1786.7,1786.4,5.59782]
[1743743178974,5.59691,1786.7,1786.5,0.27580478]
[1743743179201,11.19411,1786.7,1786.5,0.27580478]
[1743743179403,5.59691,1786.7,1786.5,0.27580478]
[1743743179602,5.59691,1786.7,1786.4,5.59779]
[1743743179904,20.53970418,1786.8,1786.6,0.27613285]
[1743743180061,22.5936746,1786.8,1786.5,0.27665788]
[1743743180252,22.5936746,1786.8,1786.4,5.59771]
[1743743180253,5.59692,1786.7,1786.4,5.59771]
[1743743180687,16.9969346,1786.8,1786.5,5.59742]
[1743743180857,14.94296418,1786.8,1786.5,5.59742]
[1743743181589,8.60584418,1786.8,1786.5,5.59742]
[1743743181763,6.01,1786.8,1786.5,5.59742]
[1743743182100,11.60673,1786.8,1786.5,11.19483]
[1743743182259,11.60673,1786.8,1786.5,5.59741]
[1743743182887,11.60673,1786.8,1786.6,6.38171]
[1743743182888,6.01,1786.8,1786.6,6.38171]
[1743743183076,6.01,1786.8,1786.7,5.59691]
[1743743183683,6.01,1786.8,1786.6,11.97882]
[1743743184688,6.01,1786.8,1786.6,11.97879]
[1743743185096,6.01,1786.8,1786.7,5.59691]
[1743743185606,17.20847966,1787.0,1786.7,5.59691]
[1743743186110,17.20847966,1787.0,1786.6,11.97879]
[1743743186280,6.01623966,1787.0,1786.7,5.59676]
[1743743186480,11.61224966,1787.0,1786.7,5.59676]
[1743743187010,17.20841966,1787.0,1786.7,5.59676]
[1743743187309,6.01623966,1787.0,1786.7,5.59676]
[1743743187466,6.01623966,1787.0,1786.8,0.27517522]
[1743743187667,11.61223966,1787.0,1786.8,0.27517522]
[1743743190000,6.01,1787.1,1787.0,5.59597]
[1743743190202,3.0,1787.3,1787.0,5.59597]
[1743743190502,5.59539,1787.2,1787.0,0.27384885]
[1743743190699,14.19035,1787.3,1787.0,0.27384885]
[1743743190874,5.59546,1787.2,1787.0,0.27384885]
[1743743191470,8.59503,1787.3,1787.0,5.86974885]
[1743743191699,14.1902,1787.3,1787.0,5.86974885]
[1743743191901,5.59536,1787.2,1787.0,0.27384885]
[1743743192302,11.19084,1787.2,1787.0,0.27384885]
[1743743192481,6.33615,1787.1,1787.0,0.27384885]
[1743743192883,11.93195,1787.1,1786.8,5.59651]
[1743743193202,11.93195,1787.1,1786.9,0.27388948]
[1743743193203,6.75168724,1787.1,1786.9,0.27388948]
[1743743193382,12.34758724,1787.1,1786.9,0.27388948]
[1743743193580,8.19181418,1787.0,1786.9,0.27388948]
[1743743193785,5.59639,1786.9,1786.6,11.7207]
[1743743194005,11.19281,1786.9,1786.7,0.27493924]
[1743743194395,5.59639,1786.9,1786.6,11.7207]
[1743743194708,11.19284,1786.9,1786.7,0.27493924]
[1743743195071,1.97986842,1786.9,1786.4,0.8175]
[1743743195275,5.59684,1786.8,1786.4,12.01293]
[1743743195500,5.59676,1786.8,1786.5,5.59749]
[1743743195902,11.19361,1786.8,1786.4,12.01312]
[1743743196116,11.19361,1786.8,1786.4,12.01305]
[1743743196322,8.59639,1786.9,1786.5,5.59727]
[1743743196622,14.19295,1786.9,1786.6,5.5972]
[1743743197005,14.19295,1786.9,1786.5,11.1947]
[1743743197206,14.19295,1786.9,1786.5,5.59727]
[1743743198028,8.59639,1786.9,1786.5,11.19467]
[1743743198325,5.59664,1786.8,1786.5,5.59727]
[1743743199693,8.59639,1786.9,1786.5,11.1947]
[1743743199898,3.0,1786.9,1786.6,5.59704]
[1743743200094,6.01,1787.0,1786.9,5.59628]
[1743743200341,6.00608304,1787.0,1786.9,5.59628]
[1743743201435,6.00608304,1787.0,1786.8,6.39025]
[1743743202505,11.60205304,1787.0,1786.9,0.27437366]
[1743743202730,17.32190876,1787.0,1786.9,0.27437366]
[1743743202901,9.74658304,1787.0,1786.9,0.27437366]
[1743743203101,9.74658304,1787.0,1786.7,11.19354]
[1743743203421,9.74658304,1787.0,1786.8,0.27482934]
[1743743203929,9.00608304,1787.0,1786.8,0.27482934]
[1743743204303,3.0,1786.9,1786.8,0.27482934]
[1743743204502,8.59628,1786.9,1786.6,11.98812]
[1743743204702,3.0,1786.9,1786.8,0.27499073]
[1743743205207,3.0,1786.9,1786.8,5.87158073]
[1743743205606,3.0,1786.9,1786.8,0.27499073]
[1743743206016,6.00608304,1787.0,1786.8,0.27499073]
[1743743206215,6.00608304,1787.0,1786.8,5.87158073]
[1743743206742,6.00608304,1787.0,1786.8,0.27499073]
[1743743207047,6.00608304,1787.0,1786.8,5.87155073]
[1743743207250,6.00608304,1787.0,1786.8,0.27499073]
[1743743207947,11.60220304,1787.0,1786.8,0.27499073]
[1743743208147,6.00608304,1787.0,1786.8,5.87156073]
[1743743208448,9.00608304,1787.0,1786.9,0.27441977]
[1743743208938,9.00608304,1787.0,1786.7,11.19361]
[1743743209125,9.00608304,1787.0,1786.9,0.27441977]
[1743743209328,9.00608304,1787.0,1786.8,5.87152462]
[1743743209537,9.00608304,1787.0,1786.9,0.27441977]
[1743743209923,14.60205304,1787.0,1786.9,0.27441977]
[1743743210124,14.60205304,1787.0,1786.7,5.5968]
[1743743210329,14.60205304,1787.0,1786.9,0.27441977]
[1743743210654,9.00608304,1787.0,1786.9,0.27441977]
[1743743210857,9.00608304,1787.0,1786.7,12.392378]
[1743743211019,14.60208304,1787.0,1786.9,0.27441977]
[1743743211213,14.60208304,1787.0,1786.8,0.2745987]
[1743743211403,14.60208304,1787.0,1786.9,0.27407385]
[1743743211605,9.00608304,1787.0,1786.9,0.27407385]
[1743743211842,9.00608304,1787.0,1786.8,5.59651]
[1743743212041,9.00608304,1787.0,1786.9,0.27407385]
[1743743213952,9.00608304,1787.0,1786.9,1.02917385]
[1743743215548,6.00608304,1787.0,1786.9,1.02917385]
[1743743215743,11.60205304,1787.0,1786.9,0.27407385]
[1743743216049,11.60205304,1787.0,1786.6,6.35224]
[1743743216050,5.59639,1786.9,1786.6,6.35224]
[1743743216249,5.59639,1786.9,1786.6,8.077509]
[1743743216561,11.19334,1786.8,1786.6,1.725269]
[1743743216720,11.19334,1786.8,1786.5,5.59745]
[1743743216721,5.59701,1786.7,1786.4,6.35286]
[1743743217551,5.59701,1786.7,1786.5,0.27633501]
[1743743217713,5.59663,1786.8,1786.5,5.87376501]
[1743743217914,5.59663,1786.8,1786.5,5.87373501]
[1743743218251,5.59664,1786.8,1786.5,5.87373501]
[1743743221275,3.0,1786.7,1786.5,7.09639751]
[1743743221424,3.0,1786.7,1786.5,1.49899751]
[1743743221628,8.59701,1786.7,1786.5,1.49899751]
[1743743222277,8.59693,1786.7,1786.5,1.49899751]
[1743743222575,3.0,1786.7,1786.5,7.09641751]
[1743743222768,3.0,1786.7,1786.5,12.69383751]
[1743743222993,8.59722,1786.6,1786.5,0.27633501]
[1743743223129,14.60330304,1786.6,1786.5,0.27633501]
[1743743223335,5.59795,1786.4,1786.1,11.19748]
[1743743223579,2.59584418,1786.5,1786.2,5.59829]
[1743743223947,2.59584418,1786.5,1786.2,11.19666]
[1743743224130,6.00608304,1786.6,1786.3,7.472666]
[1743743224338,6.00608304,1786.6,1786.5,5.59753]
[1743743224556,3.0,1786.8,1786.6,0.7551]
[1743743224745,3.0,1786.8,1786.6,6.35229]
[1743743225064,3.0,1786.8,1786.6,6.35219]
[1743743225269,6.00608304,1786.9,1786.7,6.232129]
[1743743225451,6.00608304,1786.9,1786.7,11.828929]
[1743743225666,6.00608304,1786.9,1786.7,6.232019]
[1743743225959,6.00608304,1786.9,1786.7,11.828779]
[1743743226672,6.00608304,1786.9,1786.7,11.828739]
[1743743226831,6.00608304,1786.9,1786.8,6.7794639]
[1743743227550,6.00608304,1786.9,1786.8,1.1828739]
[1743743227863,6.00608304,1786.9,1786.7,0.635219]
[1743743228067,11.60250304,1786.9,1786.6,0.7551]
[1743743228564,11.60250304,1786.9,1786.6,0.81106868]
[1743743228565,6.00608304,1786.9,1786.6,0.81106868]
[1743743228728,6.00608304,1786.9,1786.8,5.59659]
[1743743229766,6.00608304,1786.9,1786.7,11.19358]
[1743743230237,6.00608304,1786.9,1786.8,5.59659]
[1743743230432,6.00608304,1786.9,1786.8,6.715927]
[1743743230636,6.00608304,1786.9,1786.8,1.119337]
[1743743232240,6.00608304,1786.9,1786.7,5.59676]
[1743743232561,6.00608304,1786.9,1786.8,0.27512907]
[1743743235376,8.19186418,1787.0,1786.8,0.27512907]
[1743743236279,8.19186418,1787.0,1786.7,5.59676]
[1743743236679,8.19186418,1787.0,1786.8,0.27512907]
[1743743237057,8.19186418,1787.0,1786.7,5.59676]
[1743743237257,8.19186418,1787.0,1786.7,6.791663]
[1743743237561,2.59584418,1787.0,1786.8,0.2746679]
[1743743238079,8.19181418,1787.0,1786.8,0.2746679]
[1743743238454,2.59584418,1787.0,1786.8,0.2746679]
[1743743238648,8.19184418,1787.0,1786.8,0.2746679]
[1743743238852,9.33678,1786.9,1786.8,0.2746679]
[1743743239383,5.59705,1786.7,1786.4,11.68182]
[1743743239960,5.59705,1786.7,1786.4,10.89282]
[1743743240584,8.19249418,1786.8,1786.4,10.89282]
[1743743240585,13.78937418,1786.8,1786.4,10.89273]
[1743743240883,8.19249418,1786.8,1786.5,5.5975]
[1743743241080,13.78923418,1786.8,1786.5,1.649023]
[1743743241388,5.59694,1786.7,1786.4,10.89273]
[1743743242783,11.19405,1786.7,1786.4,10.89273]
[1743743242988,5.59694,1786.7,1786.4,10.89273]
[1743743244684,8.93376418,1786.6,1786.2,11.1968]
[1743743244902,8.93376418,1786.6,1786.1,55.6881]
[1743743244903,11.19547,1786.5,1786.1,55.6881]
[1743743245090,5.59807,1786.4,1786.1,55.68805]
[1743743245382,5.59828,1786.3,1786.0,5.59906]
[1743743246084,6.33878,1786.3,1786.0,5.59906]
[1743743246680,11.93711,1786.3,1786.0,5.59906]
[1743743247080,6.33878,1786.3,1786.0,5.59906]
[1743743247276,11.9371,1786.3,1786.0,6.800376]
[1743743247584,11.9371,1786.3,1786.1,0.27896612]
[1743743247890,5.59847,1786.2,1786.1,0.27896612]
[1743743248191,8.59847,1786.2,1786.1,0.27896612]
[1743743248592,11.19431418,1786.2,1786.1,0.27896612]
[1743743249002,5.59883,1786.1,1785.8,10.89563]
[1743743249204,5.59883,1786.1,1785.8,6.770663]
[1743743249497,11.19777,1786.1,1785.8,6.770663]
[1743743249698,3.0,1786.0,1785.7,6.41473]
[1743743249859,8.59925,1786.0,1785.7,6.41473]
[1743743251110,9.33975,1786.0,1785.7,6.41464]
[1743743251312,9.33975,1786.0,1785.7,6.4146]
[1743743252676,14.93903,1786.0,1785.7,6.4146]
[1743743252877,3.7405,1786.0,1785.7,6.80138]
[1743743253078,3.0,1786.0,1785.8,5.59964]
[1743743253577,3.41394697,1786.0,1785.8,5.59964]
[1743743254305,3.41394697,1786.0,1785.7,12.40133]
[1743743254491,3.41394697,1786.0,1785.7,6.80138]
[1743743254777,3.41394697,1786.0,1785.8,6.279858]
[1743743254979,9.01304697,1786.0,1785.8,0.680138]
[1743743255290,3.41394697,1786.0,1785.8,0.680138]
[1743743255673,9.01307697,1786.0,1785.8,0.680138]
[1743743255984,3.41394697,1786.0,1785.7,11.19982]
[1743743256183,5.59946,1785.9,1785.6,6.41493]
[1743743256699,11.93952,1785.9,1785.6,5.60023]
[1743743256899,5.59976,1785.8,1785.5,54.87914]
[1743743257601,11.93966,1785.9,1785.5,54.87914]
[1743743257803,6.33996,1785.9,1785.5,54.87914]
[1743743258097,6.33996,1785.9,1785.6,5.60032]
[1743743258272,11.93958,1785.9,1785.5,54.87909]
[1743743258608,6.33996,1785.9,1785.5,54.87909]
[1743743258803,8.19561418,1785.8,1785.5,54.87908]
[1743743259011,8.19561418,1785.8,1785.5,11.20108]
[1743743259306,8.19561418,1785.8,1785.5,11.2011]
[1743743259495,2.59584418,1785.8,1785.5,11.2011]
[1743743259802,8.19560418,1785.8,1785.4,11.7136]
[1743743260007,5.60044,1785.6,1785.3,5.60127]
[1743743260186,6.34094,1785.6,1785.3,5.60127]
[1743743260371,5.60068,1785.5,1785.2,6.40418]
[1743743260569,11.60676304,1785.5,1785.2,0.8027]
[1743743260772,11.60676304,1785.5,1785.2,6.40431]
[1743743260985,5.60101,1785.4,1785.2,0.8027]
[1743743261190,11.60676304,1785.5,1785.2,0.8027]
[1743743261385,11.60676304,1785.5,1785.2,6.4043]
[1743743261593,17.62349455,1785.5,1785.2,6.4043]
[1743743261792,17.62353455,1785.5,1785.2,0.8027]
[1743743262598,12.02265455,1785.5,1785.3,0.2858693]
[1743743262899,17.62348455,1785.5,1785.3,0.2858693]
[1743743263098,12.02265455,1785.5,1785.3,0.2858693]
[1743743263298,6.42197455,1785.5,1785.3,0.2858693]
[1743743263881,12.02264455,1785.5,1785.3,0.2858693]
[1743743266179,6.00608304,1785.5,1785.3,0.2858693]
[1743743266387,6.00608304,1785.5,1785.4,6.40368]
[1743743266882,11.60557304,1785.9,1785.6,5.60034]
[1743743267083,17.20521304,1785.9,1785.5,11.20132]
[1743743267309,6.00608304,1785.9,1785.8,5.59973]
[1743743267511,0.41394697,1786.0,1785.8,11.19932]
[1743743267813,8.60192722,1786.1,1785.9,5.59938]
[1743743268208,8.60192722,1786.1,1786.0,0.28484491]
[1743743268785,14.20071722,1786.1,1786.0,0.28484491]
[1743743268986,14.20071722,1786.1,1785.8,5.59971]
[1743743269282,14.20071722,1786.1,1785.9,0.2843777]
[1743743269484,14.20071722,1786.1,1785.8,11.19931]
[1743743269705,14.20071722,1786.1,1786.0,0.28385232]
[1743743269876,8.60192722,1786.1,1785.8,11.19923]
[1743743270080,8.60192722,1786.1,1786.0,0.28385232]
[1743743270311,8.60192722,1786.1,1785.8,11.19923]
[1743743270477,8.60192722,1786.1,1786.0,0.28385232]
[1743743270681,8.60192722,1786.1,1785.8,11.19923]
[1743743270982,8.60192722,1786.1,1786.0,0.28385232]
[1743743271180,14.20078722,1786.1,1785.9,0.2843777]
[1743743271382,14.20078722,1786.1,1786.0,0.28385232]
[1743743271680,14.20078722,1786.1,1785.8,5.5996]
[1743743271910,14.20078722,1786.1,1786.0,0.28385232]
[1743743272110,14.20078722,1786.1,1785.8,11.19921]
[1743743272308,14.20078722,1786.1,1786.0,0.28385232]
[1743743272495,19.79972722,1786.1,1785.8,5.59959]
[1743743272701,20.21303095,1786.1,1786.0,0.28385232]
[1743743272908,20.21303095,1786.1,1785.8,5.59959]
[1743743273090,14.61409095,1786.1,1786.0,0.28385232]
[1743743273289,14.61409095,1786.1,1785.8,12.39943]
[1743743273511,9.01523095,1786.1,1786.0,0.28385232]
[1743743273705,9.01523095,1786.1,1785.8,12.39943]
[1743743273878,9.01523095,1786.1,1786.0,0.28385232]
[1743743274084,9.01523095,1786.1,1785.8,12.39943]
[1743743274286,8.60192722,1786.1,1786.0,0.28262882]
[1743743274487,8.60192722,1786.1,1785.9,5.8824342]
[1743743274687,8.60192722,1786.1,1786.0,0.28262882]
[1743743276898,9.02891739,1786.1,1786.0,0.28262882]
[1743743279597,9.02891739,1786.1,1786.0,5.88172882]
[1743743279800,9.02891739,1786.1,1786.0,0.28262882]
[1743743280315,9.36212435,1786.1,1786.0,0.28262882]
[1743743280528,9.36212435,1786.1,1785.7,5.59995]
[1743743280529,5.25939479,1786.1,1785.8,5.5996]
[1743743280731,3.02283435,1786.1,1786.0,0.28255959]
[1743743280938,3.02283435,1786.1,1785.9,11.48178497]
[1743743281083,2.59584418,1786.2,1786.0,5.88165959]
[1743743281288,0.7405,1786.5,1786.3,5.59799]
[1743743281515,0.42144321,1786.7,1786.5,5.59733]
[1743743281722,6.74658304,1786.9,1786.6,5.5971]
[1743743282129,6.74658304,1786.9,1786.7,0.27888357]
[1743743282130,2.59584418,1786.8,1786.7,0.27888357]
[1743743282283,8.19257418,1786.8,1786.5,6.38163]
[1743743282484,2.59584418,1786.8,1786.6,0.27885476]
[1743743282799,2.59584418,1786.8,1786.6,5.87597476]
[1743743283005,2.59584418,1786.8,1786.6,7.10173524]
[1743743283740,2.59584418,1786.8,1786.6,1.50461524]
[1743743283950,8.19253418,1786.8,1786.6,0.27885476]
[1743743285551,13.78931418,1786.8,1786.6,0.27885476]
[1743743285752,2.59584418,1786.8,1786.6,0.27885476]
[1743743286261,2.59584418,1786.8,1786.6,5.87605476]
[1743743286723,8.19245418,1786.8,1786.6,0.27885476]
[1743743286924,13.78929418,1786.8,1786.6,0.27885476]
[1743743287125,5.59691,1786.7,1786.6,0.27885476]
[1743743287329,5.59691,1786.7,1786.4,6.36808]
[1743743287736,5.59691,1786.7,1786.5,0.27707295]
[1743743288551,8.19246418,1786.8,1786.5,0.27707295]
[1743743288852,13.78923418,1786.8,1786.5,5.87451295]
[1743743289013,8.19246418,1786.8,1786.5,5.87451295]
[1743743289212,8.19246418,1786.8,1786.5,0.27707295]
[1743743289422,13.78926418,1786.8,1786.5,0.27707295]
[1743743289854,5.59692,1786.7,1786.5,0.27707295]
[1743743290011,8.19246418,1786.8,1786.5,0.27707295]
[1743743290561,5.59699,1786.7,1786.5,0.27707295]
[1743743292415,8.19246418,1786.8,1786.5,0.27707295]
[1743743292757,13.78924418,1786.8,1786.5,0.27707295]
[1743743293218,2.59584418,1786.8,1786.5,7.02171125]
[1743743293420,2.59584418,1786.8,1786.6,0.7873]
[1743743293656,2.59584418,1786.8,1786.6,6.38446]
[1743743293814,2.59584418,1786.8,1786.7,0.27620745]
[1743743294152,0.41505877,1786.9,1786.6,6.38439]
[1743743294312,16.78803418,1787.0,1786.7,0.27620745]
[1743743294749,16.78803418,1787.0,1786.6,6.38439]
[1743743294911,16.78803418,1787.0,1786.8,0.27568254]
[1743743295108,16.78803418,1787.0,1786.6,6.38439]
[1743743295307,16.78803418,1787.0,1786.9,0.27501935]
[1743743295510,16.78803418,1787.0,1786.6,7.582575]
[1743743295511,11.19182418,1787.0,1786.6,11.9815]
[1743743295754,11.19182418,1787.0,1786.9,0.27501935]
[1743743296060,16.78798418,1787.0,1786.6,6.38439]
[1743743296216,11.19182418,1787.0,1786.9,0.27501935]
[1743743296413,17.21782954,1787.0,1786.6,13.179676]
[1743743296745,17.21782954,1787.0,1786.6,7.582576]
[1743743296942,5.59633,1786.9,1786.7,0.27606911]
[1743743297145,5.59633,1786.9,1786.6,7.582576]
[1743743297345,5.59633,1786.9,1786.6,1.985486]
[1743743297550,8.19253418,1786.8,1786.7,0.27606911]
[1743743297749,8.19253418,1786.8,1786.6,1.985486]
[1743743297915,8.19253418,1786.8,1786.7,0.27606911]
[1743743298115,2.59584418,1786.8,1786.6,7.582706]
[1743743298339,2.59584418,1786.8,1786.7,0.27606911]
[1743743298540,2.59584418,1786.8,1786.6,6.38452]
[1743743298739,2.59584418,1786.8,1786.7,0.27606911]
[1743743298926,2.59584418,1786.8,1786.6,6.3845]
[1743743299127,2.59584418,1786.8,1786.7,0.27606911]
[1743743299416,2.59584418,1786.8,1786.6,0.7873]
[1743743299637,2.59584418,1786.8,1786.7,0.27606911]
[1743743300049,2.59584418,1786.8,1786.6,11.9817]
[1743743300251,2.59584418,1786.8,1786.7,0.27606911]
[1743743300449,2.59584418,1786.8,1786.7,5.87297911]
[1743743300745,3.0,1787.1,1786.9,6.38345]
[1743743300950,3.0,1787.1,1787.0,0.27419476]
[1743743301313,8.19124418,1787.2,1787.0,0.27419476]
[1743743302468,13.78674418,1787.2,1787.0,0.27419476]
[1743743303430,5.59565,1787.1,1787.0,0.27419476]
[1743743303955,5.59565,1787.1,1786.8,6.38387]
[1743743304119,2.59584418,1787.0,1786.9,0.27471955]
[1743743306552,2.59584418,1787.0,1786.9,5.87099955]
[1743743307053,3.01113187,1787.2,1786.9,5.87099955]